fUSD/lending_fUSD_20240712
["ID","MTS","AMOUNT","RATE_DAILY","PERIOD"]
[331772074,1720757478808,-500.0,0.00013953,2]
[331772075,1720757478818,-500.0,0.00013953,2]
[331772076,1720757478828,-500.0,0.00013953,2]
[331772077,1720757478838,-500.0,0.00013953,2]
[331772078,1720757478848,-500.0,0.00013953,2]
[331772079,1720757478858,-507.47,0.00013953,2]
[331772080,1720757478867,-500.0,0.00013953,2]
[331772081,1720757478877,-500.0,0.00013953,2]
[331772082,1720757478887,-742.48,0.00013953,2]
[331772083,1720757478898,-943.58,0.00013953,2]
[331772084,1720757479126,-809.42,0.00013953,2]
[331772085,1720757479145,-500.0,0.00013953,2]
[331772086,1720757479155,-500.0,0.00013953,2]
[331772087,1720757479165,-500.0,0.00013953,2]
[331772088,1720757479174,-659.52,0.00013953,2]
[331772089,1720757479183,-500.0,0.00013953,2]
[331772090,1720757479192,-500.0,0.00013953,2]
[331772091,1720757479202,-500.0,0.00013953,2]
[331772092,1720757479212,-800.83,0.00013953,2]
[331772093,1720757479221,-529.77,0.00013953,2]
[331772094,1720757479230,-1091.23,0.00013953,2]
[331772095,1720757479240,-500.0,0.00013953,2]
[331772096,1720757479249,-500.0,0.00013953,2]
[331772097,1720757479259,-177.98,0.00013953,2]
[331772098,1720757479268,-500.0,0.00013953,2]
[331772099,1720757479277,-500.0,0.00013953,2]
[331772100,1720757479286,-516.96,0.00013953,2]
[331772101,1720757479295,-503.54,0.00013953,2]
[331772102,1720757479304,-500.0,0.00013953,2]
[331772103,1720757479313,-805.69,0.00013953,2]
[331772104,1720757479322,-500.0,0.00013953,2]
[331772105,1720757479331,-586.9,0.00013953,2]
[331772106,1720757479341,-611.29,0.00013953,2]
[331772107,1720757479350,-500.0,0.00013953,2]
[331772108,1720757479360,-500.0,0.00013953,2]
[331772109,1720757479369,-500.0,0.00013953,2]
[331772110,1720757479378,-668.24,0.00013953,2]
[331772111,1720757479387,-500.0,0.00013953,2]
[331772112,1720757479396,-500.0,0.00013953,2]
[331772113,1720757479405,-693.46,0.00013953,2]
[331772114,1720757479414,-889.1,0.00013953,2]
[331772115,1720757479423,-500.0,0.00013953,2]
[331772116,1720757479433,-500.0,0.00013953,2]
[331772117,1720757479441,-500.0,0.00013953,2]
[331772118,1720757479451,-500.0,0.00013953,2]
[331772119,1720757479460,-500.0,0.00013953,2]
[331772120,1720757479470,-500.0,0.00013953,2]
[331772121,1720757479479,-533.01624226,0.00013953,2]
[331772122,1720757479488,-722.95,0.00013953,2]
[331772123,1720757479498,-829.01,0.00013953,2]
[331772124,1720757479508,-500.0,0.00013953,2]
[331772125,1720757479517,-500.0,0.00013953,2]
[331772126,1720757479527,-898.52,0.00013953,2]
[331772127,1720757479536,-500.0,0.00013953,2]
[331772128,1720757479545,-848.91,0.00013953,2]
[331772129,1720757479555,-500.0,0.00013953,2]
[331772130,1720757479565,-500.0,0.00013953,2]
[331772131,1720757479574,-500.0,0.00013953,2]
[331772132,1720757479584,-500.0,0.00013953,2]
[331772133,1720757479594,-500.0,0.00013953,2]
[331772134,1720757479604,-500.0,0.00013953,2]
[331772135,1720757479613,-500.0,0.00013953,2]
[331772136,1720757479623,-500.0,0.00013953,2]
[331772137,1720757479632,-713.42,0.00013953,2]
[331772138,1720757479642,-500.0,0.00013953,2]
[331772139,1720757479651,-500.0,0.00013953,2]
[331772140,1720757479660,-500.0,0.00013953,2]
[331772141,1720757479670,-566.9,0.00013953,2]
[331772142,1720757479679,-557.38,0.00013953,2]
[331772143,1720757479689,-500.0,0.00013953,2]
[331772144,1720757479698,-500.0,0.00013953,2]
[331772145,1720757479708,-500.0,0.00013953,2]
[331772146,1720757479717,-473.32,0.00013953,2]
[331772147,1720757479727,-722.31,0.00013953,2]
[331772148,1720757479737,-500.0,0.00013953,2]
[331772149,1720757479746,-568.96,0.00013953,2]
[331772150,1720757479754,-716.92,0.00013953,2]
[331772151,1720757479763,-500.0,0.00013953,2]
[331772152,1720757479772,-500.0,0.00013954,2]
[331772153,1720757479781,-500.0,0.00013954,2]
[331772154,1720757479791,-628.16,0.00013954,2]
[331772155,1720757479799,-500.0,0.00013954,2]
[331772156,1720757479809,-500.0,0.00013954,2]
[331772157,1720757479818,-500.0,0.00013954,2]
[331772158,1720757479827,-500.0,0.00013954,2]
[331772159,1720757479836,-500.0,0.00013954,2]
[331772160,1720757479846,-524.99,0.00013954,2]
[331772161,1720757479855,-500.0,0.00013954,2]
[331772162,1720757479864,-500.0,0.00013954,2]
[331772163,1720757479873,-500.0,0.00013954,2]
[331772164,1720757479882,-500.0,0.00013954,2]
[331772165,1720757479892,-500.0,0.00013954,2]
[331772166,1720757479904,-500.0,0.00013954,2]
[331772167,1720757479913,-592.04,0.00013954,2]
[331772168,1720757479922,-500.0,0.00013954,2]
[331772169,1720757479932,-500.0,0.00013954,2]
[331772170,1720757479942,-500.0,0.00013954,2]
[331772171,1720757479952,-579.75825466,0.00013954,2]
[331772172,1720757479961,-500.0,0.00013954,2]
[331772173,1720757479971,-500.0,0.00013954,2]
[331772174,1720757479980,-500.0,0.00013954,2]
[331772175,1720757479990,-500.0,0.00013954,2]
[331772176,1720757480000,-500.0,0.00013954,2]
[331772177,1720757480010,-500.0,0.00013954,2]
[331772178,1720757480020,-500.0,0.00013954,2]
[331772179,1720757480029,-500.0,0.00013954,2]
[331772180,1720757480039,-296.16,0.00013954,2]
[331772181,1720757480048,-761.02,0.00013954,2]
[331772182,1720757480057,-500.0,0.00013954,2]
[331772183,1720757480067,-500.0,0.00013954,2]
[331772184,1720757480076,-500.0,0.00013954,2]
[331772185,1720757480085,-577.95,0.00013954,2]
[331772186,1720757480094,-534.1,0.00013954,2]
[331772187,1720757480103,-500.0,0.00013954,2]
[331772188,1720757480112,-500.0,0.00013954,2]
[331772189,1720757480121,-500.0,0.00013954,2]
[331772190,1720757480131,-500.0,0.00013954,2]
[331772191,1720757480140,-500.0,0.00013954,2]
[331772192,1720757480150,-500.0,0.00013954,2]
[331772193,1720757480160,-500.0,0.00013954,2]
[331772194,1720757480169,-500.0,0.00013954,2]
[331772195,1720757480179,-500.0,0.00013954,2]
[331772196,1720757480188,-500.0,0.00013954,2]
[331772197,1720757480198,-500.0,0.00013954,2]
[331772198,1720757480208,-500.0,0.00013954,2]
[331772199,1720757480217,-500.0,0.00013954,2]
[331772200,1720757480227,-625.9,0.00013954,2]
[331772201,1720757480237,-631.51,0.00013954,2]
[331772202,1720757480248,-312.21,0.00013954,2]
[331772203,1720757480257,-500.0,0.00013954,2]
[331772204,1720757480267,-599.63,0.00013954,2]
[331772205,1720757480276,-500.0,0.00013954,2]
[331772206,1720757480286,-519.97,0.00013954,2]
[331772207,1720757480296,-750.86,0.00013954,2]
[331772208,1720757480306,-590.39,0.00013954,2]
[331772209,1720757480316,-500.0,0.00013954,2]
[331772210,1720757480325,-1070.87,0.00013954,2]
[331772211,1720757480334,-580.04,0.00013954,2]
[331772212,1720757480344,-1211.95,0.00013954,2]
[331772213,1720757480353,-634.77,0.00013954,2]
[331772214,1720757480363,-830.0,0.00013954,2]
[331772215,1720757480373,-500.0,0.00013954,2]
[331772216,1720757480382,-806.94,0.00013954,2]
[331772217,1720757480392,-500.0,0.00013954,2]
[331772218,1720757480402,-500.0,0.00013954,2]
[331772219,1720757480411,-500.0,0.00013954,2]
[331772220,1720757480421,-577.75,0.00013954,2]
[331772221,1720757480431,-500.0,0.00013954,2]
[331772222,1720757480440,-500.0,0.00013954,2]
[331772223,1720757480449,-545.34,0.00013954,2]
[331772224,1720757480458,-918.58,0.00013954,2]
[331772225,1720757480468,-500.0,0.00013954,2]
[331772226,1720757480477,-500.0,0.00013954,2]
[331772227,1720757480488,-500.0,0.00013954,2]
[331772228,1720757480499,-500.0,0.00013954,2]
[331772229,1720757480508,-484.01439072,0.00013954,2]
[331772230,1720757480518,-500.0,0.00013954,2]
[331772231,1720757480528,-545.77,0.00013954,2]
[331772232,1720757480538,-878.4,0.00013954,2]
[331772233,1720757480548,-907.07,0.00013954,2]
[331772234,1720757480557,-1060.58,0.00013954,2]
[331772235,1720757480566,-590.49,0.00013954,2]
[331772236,1720757480576,-539.72,0.00013954,2]
[331772237,1720757480585,-644.29,0.00013954,2]
[331772238,1720757480594,-1109.64,0.00013954,2]
[331772239,1720757480604,-945.94,0.00013954,2]
[331772240,1720757480613,-1024.36,0.00013954,2]
[331772241,1720757480622,-724.76,0.00013954,2]
[331772242,1720757480633,-673.24,0.00013954,2]
[331772243,1720757480642,-1012.87,0.00013954,2]
[331772244,1720757480651,-1194.27,0.00013954,2]
[331772245,1720757480661,-845.08,0.00013954,2]
[331772246,1720757480671,-791.48,0.00013954,2]
[331772247,1720757480680,-743.83,0.00013954,2]
[331772248,1720757480690,-500.0,0.00013954,2]
[331772249,1720757480700,-500.0,0.00013954,2]
[331772250,1720757480710,-500.0,0.00013954,2]
[331772251,1720757480720,-500.0,0.00013954,2]
[331772252,1720757480729,-622.37,0.00013954,2]
[331772253,1720757480739,-500.0,0.00013954,2]
[331772254,1720757480749,-625.770822,0.00013973,2]
[331772255,1720757480758,-281.08660351,0.00013981,2]
[331772256,1720757480768,-2000.0,0.00013984,2]
[331772257,1720757480778,-200.0,0.00013984,2]
[331772258,1720757480787,-348.6627611,0.00013998,2]
[331772259,1720757480797,-174.3313805,0.00013998,2]
[331772260,1720757480806,-900.42249764,0.00013999,2]
[331772261,1720757480815,-500.0,0.00013999,2]
[331772262,1720757480825,-500.0,0.00013999,2]
[331772263,1720757480835,-500.0,0.00013999,2]
[331772264,1720757480845,-500.0,0.00013999,2]
[331772265,1720757480854,-500.0,0.00013999,2]
[331772266,1720757480863,-500.0,0.00013999,2]
[331772267,1720757480873,-230.48,0.00013999,2]
[331772268,1720757480883,-288899.25577364,0.00014,2]
[331772269,1720757480894,-418415.61618636,0.00014,2]
[331772270,1720757480906,-4077806.80729839,0.00014,2]
[331772271,1720757481465,-41358.24254163,0.00014,2]
[331772272,1720757481477,-72091.83589408,0.00014,2]
[331772273,1720757482018,-500.0,0.00013787,2]
[331772274,1720757482027,-149.89138414,0.00013787,2]
[331772275,1720757483014,-350.10861586,0.00013787,2]
[331772276,1720757483024,-500.0,0.00013787,2]
[331772277,1720757483034,-500.0,0.00013788,2]
[331772278,1720757483043,-644.44,0.00013841,2]
[331772279,1720757483052,-393.45138464,0.00013842,2]
[331772280,1720757483065,-106.54861536,0.00013842,2]
[331772281,1720757483074,-500.0,0.00013842,2]
[331772282,1720757483083,-500.0,0.00013842,2]
[331772283,1720757483092,-352.75,0.00013842,2]
[331772284,1720757483102,-500.0,0.00013843,2]
[331772285,1720757483111,-644.44,0.00013896,2]
[331772286,1720757483121,-500.0,0.00013897,2]
[331772287,1720757483130,-500.0,0.00013897,2]
[331772288,1720757483140,-500.0,0.00013898,2]
[331772289,1720757483150,-644.44,0.00013951,2]
[331772290,1720757483160,-500.0,0.00013952,2]
[331772291,1720757483170,-500.0,0.00013952,2]
[331772292,1720757483180,-500.0,0.00013953,2]
[331772293,1720757483189,-419480.05446429,0.00014,2]
[331772294,1720757483216,-1082223.23700858,0.00014,2]
[331772295,1720757483228,-23015.6146648,0.00014,2]
[331772296,1720757483894,-500.0,0.00013787,2]
[331772297,1720757483907,-500.0,0.00013787,2]
[331772298,1720757483918,-500.0,0.00013787,2]
[331772299,1720757483928,-500.0,0.00013787,2]
[331772300,1720757483939,-500.0,0.00013842,2]
[331772301,1720757483950,-163.04,0.00013842,2]
[331772302,1720757483960,-76228.0692216,0.00014,2]
[331772303,1720757483973,-1351.78790995,0.00014,2]
[331772304,1720757483991,-40216.8813137,0.00014,2]
[331772305,1720757484004,-607.97134023,0.00014,2]
[331772306,1720757498963,527.87922663,9.102e-05,2]
[331772307,1720757503893,500.0,8.006e-05,2]
[331772308,1720757505515,500.0,9.65e-05,2]
[331772309,1720757507113,500.0,0.00011294,2]
[331772310,1720757592160,248.0307608,0.00011294,2]
[331772311,1720757592183,366.03385481,0.00011294,2]
[331772312,1720757595910,1290.04645399,0.00011294,2]
[331772313,1720757736870,1520.26025627,0.00011199,2]
[331772314,1720757736890,20000.0,0.00011199,2]
[331772315,1720757736910,20000.0,0.00011199,2]
[331772316,1720757736935,7884.35600538,0.00011199,2]
[331772317,1720757797561,170.35,0.0001028,2]
[331772318,1720757861418,316.21,0.00010921,2]
[331772319,1720758062188,382.17977262,0.00011199,2]
[331772320,1720758087559,658.3771383,0.00011199,2]
[331772321,1720758112076,11016.8724216,0.00011199,2]
[331772322,1720758179828,176.22964096,0.00011199,2]
[331772323,1720758237301,5836.62286311,0.00011199,2]
[331772324,1720758407596,318.81,0.00010714,2]
[331772327,1720758568697,328.94276058,0.00011199,2]
[331772328,1720758621248,2183.16824585,0.00011199,2]
[331772353,1720758631632,-238.51826763,0.00012273,2]
[331772354,1720758631642,-162.92264275,0.00012302,2]
[331772355,1720758631653,-449.21095539,0.00012302,2]
[331772356,1720758631663,-483.44679723,0.00012314,2]
[331772357,1720758631672,-245.50491494,0.00012314,2]
[331772358,1720758631681,-304.06,0.00012421,2]
[331772359,1720758631690,-300.0,0.00012518,2]
[331772360,1720758631700,-179.45,0.00012519,2]
[331772361,1720758631709,-250.0,0.00012601,2]
[331772362,1720758631719,-1000.0,0.00012606,2]
[331772363,1720758631729,-7055.57376628,0.00012649,2]
[331772364,1720758631746,-1336.23099749,0.00012649,2]
[331772365,1720758631757,-750.93154305,0.00012649,2]
[331772366,1720758631768,-708.08516281,0.00012649,2]
[331772367,1720758632152,-3078.55932045,0.00012649,2]
[331772370,1720758637594,-196.42500108,0.00012273,2]
[331772371,1720758637604,-487.49234858,0.00012421,2]
[331772372,1720758637653,-3209.94494954,0.00012421,2]
[331772373,1720758637665,-701.89106013,0.00012421,2]
[331772374,1720758637712,-720.62291816,0.00012421,2]
[331772375,1720758637828,-4529.26524917,0.00012421,2]
[331772376,1720758637838,-6200.99920992,0.00012649,2]
[331772377,1720758637847,-180.84,0.00012667,2]
[331772378,1720758637856,-169.74,0.00012719,2]
[331772379,1720758637865,-1003.91,0.00012808,2]
[331772380,1720758637874,-300.0,0.00012938,2]
[331772381,1720758637883,-260.14,0.00012938,2]
[331772382,1720758637893,-183.73,0.00012953,2]
[331772383,1720758637902,-318.81,0.00012978,2]
[331772384,1720758637911,-1465.0,0.0001298,2]
[331772385,1720758637920,-155.68074044,0.00013128,2]
[331772386,1720758637929,-522.07482015,0.00013128,2]
[331772387,1720758637939,-1300.77,0.000133,2]
[331772388,1720758637949,-151.96,0.0001337,2]
[331772389,1720758637960,-1057.88,0.0001337,2]
[331772390,1720758637971,-355.25,0.0001337,2]
[331772391,1720758637980,-329.88,0.0001337,2]
[331772392,1720758637989,-300.0,0.0001337,2]
[331772393,1720758637998,-355.25,0.0001337,2]
[331772394,1720758638009,-355.25,0.0001337,2]
[331772395,1720758638019,-355.25,0.0001337,2]
[331772396,1720758638030,-354.85,0.0001337,2]
[331772397,1720758638039,-150.0,0.00013435,2]
[331772398,1720758638048,-443.57,0.00013435,2]
[331772399,1720758638058,-150.0,0.00013435,2]
[331772400,1720758638066,-150.0,0.00013435,2]
[331772401,1720758638076,-150.0,0.00013435,2]
[331772402,1720758638085,-150.0,0.00013435,2]
[331772403,1720758638094,-151.37,0.00013435,2]
[331772404,1720758638103,-151.15,0.00013435,2]
[331772405,1720758638112,-1253.0,0.00013625,2]
[331772406,1720758638121,-322.33644572,0.00013687,2]
[331772407,1720758638131,-151.78,0.00013699,2]
[331772408,1720758638140,-195.66805037,0.00013704,2]
[331772409,1720758638149,-5000.0,0.00013719,2]
[331772410,1720758638159,-420.0,0.00013734,2]
[331772411,1720758638168,-307.55,0.00013776,3]
[331772412,1720758638177,-153.77,0.00013776,3]
[331772413,1720758638186,-461.36,0.00013776,3]
[331772414,1720758638195,-500.0,0.00013785,2]
[331772415,1720758638205,-500.0,0.00013785,2]
[331772416,1720758638215,-500.0,0.00013785,2]
[331772417,1720758638224,-500.0,0.00013785,2]
[331772418,1720758638234,-803.48,0.00013785,2]
[331772419,1720758638247,-500.0,0.00013785,2]
[331772420,1720758638256,-921.35,0.00013785,2]
[331772421,1720758638266,-500.0,0.00013785,2]
[331772422,1720758638275,-500.0,0.00013785,2]
[331772423,1720758638285,-649.78,0.00013785,2]
[331772424,1720758638294,-616.09,0.00013785,2]
[331772425,1720758638304,-500.0,0.00013785,2]
[331772426,1720758638314,-500.0,0.00013785,2]
[331772427,1720758638325,-500.0,0.00013785,2]
[331772428,1720758638335,-500.0,0.00013785,2]
[331772429,1720758638344,-500.0,0.00013785,2]
[331772430,1720758638353,-500.0,0.00013785,2]
[331772431,1720758638363,-500.0,0.00013785,2]
[331772432,1720758638372,-500.0,0.00013785,2]
[331772433,1720758638381,-500.0,0.00013785,2]
[331772434,1720758638391,-500.0,0.00013785,2]
[331772435,1720758638400,-500.0,0.00013785,2]
[331772436,1720758638410,-5136.07,0.00013785,2]
[331772437,1720758638419,-515.07,0.00013785,2]
[331772438,1720758638428,-756.47,0.00013786,2]
[331772439,1720758638438,-500.0,0.00013786,2]
[331772440,1720758638448,-500.0,0.00013786,2]
[331772441,1720758638457,-1457.13,0.00013786,2]
[331772442,1720758638466,-1000.0,0.00013786,2]
[331772443,1720758638477,-504.17,0.00013786,2]
[331772444,1720758638486,-500.0,0.00013786,2]
[331772445,1720758638495,-500.0,0.00013786,2]
[331772446,1720758638504,-500.0,0.00013786,2]
[331772447,1720758638514,-500.0,0.00013786,2]
[331772448,1720758638523,-500.0,0.00013786,2]
[331772449,1720758638532,-500.0,0.00013786,2]
[331772450,1720758638541,-500.0,0.00013786,2]
[331772451,1720758638550,-628.47,0.00013786,2]
[331772452,1720758638559,-500.0,0.00013786,2]
[331772453,1720758638568,-222.19387537,0.00013786,2]
[331772454,1720758638577,-1036.02,0.00013786,2]
[331772455,1720758638586,-500.0,0.00013786,2]
[331772456,1720758638595,-500.0,0.00013786,2]
[331772457,1720758638604,-578.62,0.00013786,2]
[331772458,1720758638613,-154.96536798,0.00013786,2]
[331772459,1720758638622,-692.72,0.00013786,2]
[331772460,1720758638631,-619.38,0.00013786,2]
[331772461,1720758638640,-594.01,0.00013786,2]
[331772462,1720758638649,-944.04,0.00013786,2]
[331772463,1720758638658,-500.0,0.00013786,2]
[331772464,1720758638667,-500.0,0.00013786,2]
[331772465,1720758638676,-1005.7,0.00013786,2]
[331772466,1720758638686,-500.0,0.00013786,2]
[331772467,1720758638695,-834.27,0.00013786,2]
[331772468,1720758638704,-1359.7,0.00013786,2]
[331772469,1720758638714,-708.71,0.00013786,2]
[331772470,1720758638724,-500.0,0.00013786,2]
[331772471,1720758638733,-500.0,0.00013786,2]
[331772472,1720758638743,-1294.23,0.00013786,2]
[331772473,1720758638752,-1564.21,0.00013786,2]
[331772474,1720758638761,-500.0,0.00013786,2]
[331772475,1720758638770,-500.0,0.00013786,2]
[331772476,1720758638779,-500.0,0.00013786,2]
[331772477,1720758639034,-500.0,0.00013786,2]
[331772478,1720758639045,-761.03,0.00013786,2]
[331772479,1720758639055,-500.0,0.00013786,2]
[331772480,1720758639066,-993.48,0.00013786,2]
[331772481,1720758639075,-500.0,0.00013786,2]
[331772482,1720758639084,-561.62,0.00013786,2]
[331772483,1720758639093,-500.0,0.00013786,2]
[331772484,1720758639102,-500.0,0.00013786,2]
[331772485,1720758639112,-794.46,0.00013786,2]
[331772486,1720758639121,-500.0,0.00013786,2]
[331772487,1720758639130,-500.0,0.00013786,2]
[331772488,1720758639139,-500.0,0.00013786,2]
[331772489,1720758639148,-500.0,0.00013786,2]
[331772490,1720758639158,-500.0,0.00013786,2]
[331772491,1720758639167,-677.22,0.00013786,2]
[331772492,1720758639176,-500.0,0.00013786,2]
[331772493,1720758639185,-563.31,0.00013786,2]
[331772494,1720758639194,-500.0,0.00013786,2]
[331772495,1720758639204,-517.9,0.00013786,2]
[331772496,1720758639213,-701.32,0.00013786,2]
[331772497,1720758639222,-924.74,0.00013786,2]
[331772498,1720758639232,-206.82106144,0.00013786,2]
[331772499,1720758639244,-1270.13,0.00013786,2]
[331772500,1720758639254,-1168.36,0.00013786,2]
[331772501,1720758639263,-500.0,0.00013786,2]
[331772502,1720758639273,-506.16384794,0.00013786,2]
[331772503,1720758639282,-500.0,0.00013786,2]
[331772504,1720758639292,-500.0,0.00013786,2]
[331772505,1720758639301,-500.0,0.00013786,2]
[331772506,1720758639312,-830.61,0.00013786,2]
[331772507,1720758639324,-500.0,0.00013786,2]
[331772508,1720758639333,-500.0,0.00013786,2]
[331772509,1720758639342,-500.0,0.00013786,2]
[331772510,1720758639351,-500.0,0.00013786,2]
[331772511,1720758639360,-500.0,0.00013786,2]
[331772512,1720758639370,-500.0,0.00013786,2]
[331772513,1720758639380,-777.96,0.00013786,2]
[331772514,1720758639389,-500.0,0.00013786,2]
[331772515,1720758639398,-784.77,0.00013786,2]
[331772516,1720758639408,-500.0,0.00013786,2]
[331772517,1720758639417,-1569.26,0.00013786,2]
[331772518,1720758639426,-764.63,0.00013786,2]
[331772519,1720758639436,-500.0,0.00013786,2]
[331772520,1720758639445,-815.13,0.00013786,2]
[331772521,1720758639454,-500.0,0.00013786,2]
[331772522,1720758639463,-500.0,0.00013786,2]
[331772523,1720758639472,-500.0,0.00013786,2]
[331772524,1720758639481,-1683.08,0.00013786,2]
[331772526,1720758639491,-500.0,0.00013786,2]
[331772527,1720758639500,-500.0,0.00013786,2]
[331772528,1720758639509,-500.0,0.00013786,2]
[331772529,1720758639518,-768.06,0.00013786,2]
[331772530,1720758639527,-500.0,0.00013786,2]
[331772531,1720758639536,-500.0,0.00013786,2]
[331772533,1720758639546,-500.0,0.00013786,2]
[331772535,1720758639555,-500.0,0.00013786,2]
[331772537,1720758639564,-500.0,0.00013786,2]
[331772539,1720758639573,-851.93,0.00013786,2]
[331772541,1720758639584,-514.07826976,0.00013786,2]
[331772542,1720758639593,-1238.01,0.00013786,2]
[331772543,1720758639604,-500.0,0.00013786,2]
[331772544,1720758639614,-535.35,0.00013786,2]
[331772545,1720758639623,-518.34,0.00013786,2]
[331772546,1720758639632,-717.7,0.00013786,2]
[331772547,1720758639643,-180.74396676,0.00013786,2]
[331772548,1720758639653,-500.0,0.00013786,2]
[331772549,1720758639663,-500.0,0.00013786,2]
[331772550,1720758639674,-1094.11,0.00013786,2]
[331772551,1720758639685,-1693.52,0.00013786,2]
[331772552,1720758639695,-500.0,0.00013786,2]
[331772553,1720758639707,-500.0,0.00013786,2]
[331772554,1720758639720,-507.61,0.00013786,2]
[331772555,1720758639730,-500.0,0.00013786,2]
[331772556,1720758639739,-500.0,0.00013786,2]
[331772557,1720758639749,-886.83,0.00013786,2]
[331772558,1720758639758,-500.0,0.00013786,2]
[331772559,1720758639767,-500.0,0.00013786,2]
[331772560,1720758639776,-614.13,0.00013786,2]
[331772561,1720758639785,-500.0,0.00013786,2]
[331772562,1720758639794,-500.0,0.00013786,2]
[331772563,1720758639804,-892.4,0.00013786,2]
[331772564,1720758639813,-537.57048977,0.00013786,2]
[331772565,1720758639822,-500.0,0.00013786,2]
[331772566,1720758639831,-500.0,0.00013786,2]
[331772567,1720758639841,-500.0,0.00013786,2]
[331772568,1720758639850,-500.0,0.00013786,2]
[331772569,1720758639859,-312.16299066,0.00013786,2]
[331772570,1720758639869,-525.88,0.00013786,2]
[331772571,1720758639878,-500.0,0.00013786,2]
[331772572,1720758639887,-500.0,0.00013786,2]
[331772573,1720758639897,-500.0,0.00013786,2]
[331772574,1720758639907,-500.0,0.00013786,2]
[331772575,1720758639918,-588.35,0.00013786,2]
[331772576,1720758639927,-500.0,0.00013786,2]
[331772577,1720758639936,-500.0,0.00013786,2]
[331772578,1720758639945,-1397.01,0.00013786,2]
[331772579,1720758639954,-500.0,0.00013786,2]
[331772580,1720758639963,-500.0,0.00013786,2]
[331772581,1720758639973,-500.0,0.00013786,2]
[331772582,1720758639982,-500.0,0.00013786,2]
[331772583,1720758639991,-500.0,0.00013786,2]
[331772584,1720758640000,-500.0,0.00013786,2]
[331772585,1720758640010,-500.0,0.00013786,2]
[331772586,1720758640019,-589.59,0.00013786,2]
[331772587,1720758640028,-500.0,0.00013786,2]
[331772588,1720758640038,-500.0,0.00013786,2]
[331772589,1720758640047,-500.0,0.00013786,2]
[331772590,1720758640056,-500.0,0.00013786,2]
[331772591,1720758640066,-730.81,0.00013786,2]
[331772592,1720758640075,-500.0,0.00013786,2]
[331772593,1720758640084,-817.94,0.00013786,2]
[331772594,1720758640093,-500.0,0.00013786,2]
[331772595,1720758640102,-540.85,0.00013786,2]
[331772596,1720758640111,-500.0,0.00013786,2]
[331772597,1720758640121,-500.0,0.00013786,2]
[331772598,1720758640129,-173.09931319,0.00013786,2]
[331772599,1720758640139,-509.31,0.00013786,2]
[331772600,1720758640148,-786.31,0.00013786,2]
[331772601,1720758640157,-500.0,0.00013786,2]
[331772602,1720758640166,-875.18,0.00013786,2]
[331772603,1720758640175,-888.22,0.00013786,2]
[331772604,1720758640184,-549.6,0.00013786,2]
[331772605,1720758640194,-500.0,0.00013786,2]
[331772606,1720758640203,-1401.22,0.00013786,2]
[331772607,1720758640212,-500.0,0.00013786,2]